bitfinex-derivatives/quotes_BNBF0:USTF0_20250521
["timestamp","ask_amount","ask_price","bid_price","bid_amount"]
[1747804852697,1.50327071,662.84,662.08,1.59289577]
[1747804852895,1.50327071,662.84,662.09,0.59244525]
[1747804853100,1.50327071,662.84,662.1,0.59244525]
[1747804853300,1.50327071,662.84,662.11,0.59244525]
[1747804853501,1.50327071,662.84,662.12,0.59244525]
[1747804853799,1.50327071,662.84,662.13,1.59289577]
[1747804854000,1.50327071,662.84,662.14,0.59244525]
[1747804854201,1.50327071,662.84,662.15,1.59289577]
[1747804854396,1.50327071,662.84,662.16,0.59244525]
[1747804854701,1.50327071,662.84,662.15,1.00045052]
[1747804854702,1.50327071,662.68,662.17,1.59273952]
[1747804854900,1.50327071,662.68,662.18,0.592289]
[1747804855100,1.50327071,662.68,662.19,1.59273952]
[1747804855396,1.50327071,662.68,662.2,1.59273952]
[1747804855602,1.50327071,662.68,662.21,0.592289]
[1747804855801,1.50327071,662.68,662.22,1.59273952]
[1747804856002,1.50327071,662.68,662.23,0.592289]
[1747804856202,1.50327071,662.68,662.24,1.59234384]
[1747804856406,1.50327071,662.68,662.25,0.59222707]
[1747804856702,1.50327071,662.68,662.26,0.59222707]
[1747804856898,1.50327071,662.68,662.27,0.59222707]
[1747804857097,0.26267025,663.2,661.81,0.26267025]
[1747804857098,1.50327071,662.7,662.28,0.59222707]
[1747804857299,1.50327071,662.7,662.29,0.59222707]
[1747804857500,1.50327071,662.7,662.3,0.59222707]
[1747804857702,1.50327071,662.7,662.31,0.59222707]
[1747804857902,1.50327071,662.7,662.32,0.59222707]
[1747804858102,1.50327071,662.7,662.33,0.59222707]
[1747804858303,1.50327071,662.7,662.34,0.59222707]
[1747804858503,1.50327071,662.7,662.35,0.59222707]
[1747804858703,1.50327071,662.7,661.87,0.36827374]
[1747804858904,1.50327071,662.7,661.88,1.59256585]
[1747804859104,1.50327071,662.7,661.89,0.59199674]
[1747804859298,1.50327071,662.7,661.9,0.59199674]
[1747804859501,1.50327071,662.73,661.91,0.59199674]
[1747804859702,1.50327071,662.73,661.92,0.59193901]
[1747804859898,1.50327071,662.73,661.93,1.59250812]
[1747804860098,1.50327071,662.73,661.94,0.59193901]
[1747804860305,1.50327071,662.73,661.95,0.59193901]
[1747804860504,1.50327071,662.73,661.96,1.59250812]
[1747804860803,1.50327071,662.73,661.97,0.59193901]
[1747804861103,1.50327071,662.73,661.98,0.59193901]
[1747804861298,1.50327071,662.73,661.99,0.59193901]
[1747804861499,1.50327071,662.73,662.0,0.59193901]
[1747804861702,1.50327071,662.73,662.01,0.59193901]
[1747804861902,1.50327071,662.73,662.02,1.59250812]
[1747804862101,1.50327071,662.73,662.03,0.59193901]
[1747804862302,0.2626534,663.2,661.82,0.26271487]
[1747804862303,1.50327071,662.67,662.04,1.59250812]
[1747804862503,1.50327071,662.67,662.05,0.59193901]
[1747804862702,1.50327071,662.67,662.06,0.59193901]
[1747804862904,1.50327071,662.67,662.07,0.59193901]
[1747804863099,1.50327071,662.67,662.08,1.59250812]
[1747804863299,1.50327071,662.67,662.09,1.59250812]
[1747804863503,1.50327071,662.67,662.1,0.59193901]
[1747804863700,1.50327071,662.67,662.11,1.59250812]
[1747804863901,1.50327071,662.67,662.12,0.59193901]
[1747804864103,1.50327071,662.67,662.13,0.59193901]
[1747804864301,1.50327071,662.67,662.14,0.59252465]
[1747804864505,1.50327071,662.67,662.15,0.59252465]
[1747804864704,1.50327071,662.67,662.16,0.59252465]
[1747804864904,1.50327071,662.67,662.17,0.59252465]
[1747804865106,1.50327071,662.67,662.18,0.59252465]
[1747804865304,1.50327071,662.67,662.19,0.59252465]
[1747804865499,1.50327071,662.67,662.2,0.59252465]
[1747804865702,1.50327071,662.68,662.21,0.59252465]
[1747804866004,1.50327071,662.68,662.22,0.59252465]
[1747804866205,1.50327071,662.68,662.23,0.59252465]
[1747804866405,1.50327071,662.68,662.24,0.59252465]
[1747804866709,1.50327071,662.68,662.25,0.59252465]
[1747804866911,1.50327071,662.68,662.26,0.59252465]
[1747804867108,1.50327071,662.68,662.27,0.59252465]
[1747804867308,1.50327071,662.68,661.74,0.36827374]
[1747804867513,1.50327071,662.68,661.75,1.59398809]
[1747804867709,1.50327071,662.68,661.76,0.59260232]
[1747804867914,1.50327071,662.68,661.77,0.59260232]
[1747804868113,1.50327071,662.7,661.78,0.59260232]
[1747804868312,1.50327071,662.7,661.79,0.59260232]
[1747804868511,1.50327071,662.7,661.8,1.59398809]
[1747804868712,1.50327071,662.7,661.81,0.59260232]
[1747804868914,1.50327071,662.7,661.8,1.00138577]
[1747804868915,1.50327071,662.7,661.82,0.59260232]
[1747804869116,1.50327071,662.7,661.83,1.59398809]
[1747804869311,1.50327071,662.7,661.84,0.59260232]
[1747804869512,1.50327071,662.7,661.85,0.59260232]
[1747804869709,1.50327071,662.7,661.86,0.59290341]
[1747804869912,1.50327071,662.7,661.87,1.59428918]
[1747804870108,1.50327071,662.7,661.88,0.59290341]
[1747804870413,1.50327071,662.7,661.89,0.59290341]
[1747804870613,1.50327071,662.7,661.9,0.59290341]
[1747804870811,1.50327071,662.7,661.91,0.59290341]
[1747804871009,2.25501736,662.67,661.92,1.59428918]
[1747804871212,1.50327071,662.53,661.93,0.59289391]
[1747804871413,1.50327071,662.53,661.94,1.59427968]
[1747804871613,1.50327071,662.53,661.95,0.59289391]
[1747804871812,1.50327071,662.53,661.96,0.59289391]
[1747804872010,1.50327071,662.53,661.97,0.59289391]
[1747804872214,1.50327071,662.53,661.98,0.59289391]
[1747804872415,1.50327071,662.53,661.99,0.59289391]
[1747804872611,1.50327071,662.53,662.0,1.59427968]
[1747804872918,1.50327071,662.53,662.01,1.59427968]
[1747804873117,1.50327071,662.53,662.02,0.59289391]
[1747804873311,0.26274859,663.0,662.03,0.59289391]
[1747804873312,1.50327071,662.55,662.03,0.59289391]
[1747804873516,1.50327071,662.55,662.04,0.59289391]
[1747804873716,1.50327071,662.55,662.05,1.59427968]
[1747804873916,1.50327071,662.55,662.06,0.59289391]
[1747804874118,1.50327071,662.55,662.07,1.59427968]
[1747804874419,1.50327071,662.55,662.08,0.59289391]
[1747804874717,1.50327071,662.55,662.09,0.59318888]
[1747804874912,1.50327071,662.55,662.1,0.59318888]
[1747804875111,1.50327071,662.55,662.11,0.59318888]
[1747804875311,1.50327071,662.55,662.12,0.59318888]
[1747804875515,1.50327071,662.55,662.13,0.59318888]
[1747804875716,1.50327071,662.55,662.14,0.59318888]
[1747804876018,1.50327071,662.53,662.15,0.59318888]
[1747804876218,1.50327071,662.53,662.16,0.59318888]
[1747804876518,1.50327071,662.53,662.17,0.59318888]
[1747804876711,1.50327071,662.53,662.18,0.59318888]
[1747804876915,1.50327071,662.53,662.19,0.59318888]
[1747804877113,1.50327071,662.53,661.74,0.36827374]
[1747804877413,1.50327071,662.53,661.75,0.59328458]
[1747804877616,1.50327071,662.53,661.76,0.59328458]
[1747804877913,1.50327071,662.53,661.77,1.58609227]
[1747804878113,1.50327071,662.53,661.78,0.59328458]
[1747804878312,1.50327071,662.53,661.79,1.58609227]
[1747804878514,1.50327071,662.53,661.8,0.59328458]
[1747804878714,1.50327071,662.54,661.81,0.59328458]
[1747804878914,1.50327071,662.54,661.82,0.59328458]
[1747804879117,1.50327071,662.54,661.83,0.59328458]
[1747804879314,1.50327071,662.54,661.84,0.59328458]
[1747804879518,1.50327071,662.54,661.85,0.59328458]
[1747804879718,1.50327071,662.54,661.86,1.58609227]
[1747804879917,1.50327071,662.54,661.87,0.59328458]
[1747804880121,1.50327071,662.54,661.88,0.59328458]
[1747804880317,1.50327071,662.54,661.89,0.59328458]
[1747804880513,1.50327071,662.54,661.86,0.99280769]
[1747804880514,1.50327071,662.54,661.9,0.59328458]
[1747804880717,1.50327071,662.54,661.91,0.59328458]
[1747804880919,1.50327071,662.54,661.92,0.59328458]
[1747804881223,1.50327071,662.54,661.93,1.58609227]
[1747804881418,1.50327071,662.54,661.94,0.59328458]
[1747804881616,1.50327071,662.54,661.95,0.59328458]
[1747804881819,1.50327071,662.54,661.94,0.99280769]
[1747804881820,1.50327071,662.5,661.96,0.59328458]
[1747804882019,1.50327071,662.5,661.97,0.59328458]
[1747804882221,1.50327071,662.5,661.98,1.58609227]
[1747804882421,1.50327071,662.5,661.99,0.59328458]
[1747804882618,1.50327071,662.5,662.0,0.59328458]
[1747804882823,1.50327071,662.5,662.01,0.59328458]
[1747804883123,1.50327071,662.5,662.02,0.59328458]
[1747804883323,1.50327071,662.5,662.03,0.59328458]
[1747804883524,1.50327071,662.5,662.04,0.59328458]
[1747804883727,1.50327071,662.5,661.6,0.36827374]
[1747804883925,1.50327071,662.33,661.63,1.58916509]
[1747804884120,1.50327071,662.33,661.64,0.5942039]
[1747804884322,1.50327071,662.33,661.65,1.58916509]
[1747804884517,1.50327071,662.33,661.66,0.5942039]
[1747804884723,1.50327071,662.33,661.67,1.58916509]
[1747804884923,1.50327071,662.33,661.68,1.58916509]
[1747804885121,1.50327071,662.33,661.68,0.99496119]
[1747804885323,1.50327071,662.33,661.69,0.59476406]
[1747804885523,1.50327071,662.33,661.7,1.58972525]
[1747804885721,1.50327071,662.33,661.71,0.59476406]
[1747804885921,1.50327071,662.33,661.72,0.59476406]
[1747804886227,1.50327071,662.39,661.73,0.59476406]
[1747804886422,1.50327071,662.39,661.74,0.59476406]
[1747804886623,1.50327071,662.39,661.75,1.58972525]
[1747804886823,1.50327071,662.39,661.76,0.59476406]
[1747804887026,1.50327071,662.39,661.77,0.59476406]
[1747804887325,1.50327071,662.39,661.78,1.58972525]
[1747804887527,1.50327071,662.39,661.79,0.59476406]
[1747804887723,1.50327071,662.39,661.8,0.59476406]
[1747804887924,1.50327071,662.39,661.81,0.59476406]
[1747804888123,1.50327071,662.39,661.82,0.59476406]
[1747804888329,1.50327071,662.39,661.83,0.59476406]
[1747804888530,1.50327071,662.39,661.84,0.59476406]
[1747804888730,1.50327071,662.39,661.85,0.59476406]
[1747804888926,1.50327071,662.39,661.86,0.59476406]
[1747804889125,1.50327071,662.39,661.87,0.59476406]
[1747804889330,1.50327071,662.39,661.88,0.59476406]
[1747804889530,1.50327071,662.39,661.64,0.36827374]
[1747804889726,1.50327071,662.39,661.65,1.59420884]
[1747804889929,2.25501736,662.33,661.66,0.59533265]
[1747804890131,1.50327071,662.21,661.67,0.59533265]
[1747804890329,1.50327071,662.21,661.68,1.59420423]
[1747804890530,1.50327071,662.21,661.69,0.59532804]
[1747804890731,1.50327071,662.21,661.7,1.59420423]
[1747804890931,1.50327071,662.21,661.71,0.59532804]
[1747804891129,1.50327071,662.21,661.72,0.59532804]
[1747804891328,1.50327071,662.21,661.73,1.59420423]
[1747804891527,1.50327071,662.21,661.74,0.59532804]
[1747804891730,1.50327071,662.21,661.75,1.59420423]
[1747804891925,1.50327071,662.21,661.75,0.99887619]
[1747804892126,1.50327071,662.21,661.76,0.59433047]
[1747804892329,1.50327071,662.21,661.77,0.59433047]
[1747804892528,1.50327071,662.21,661.78,0.59433047]
[1747804892728,1.50327071,662.21,661.61,1.311]
[1747804892932,1.50327071,662.21,661.62,1.59181561]
[1747804893129,1.50327071,662.19,661.63,0.59431315]
[1747804893329,1.50327071,662.19,661.64,0.59431315]
[1747804893529,1.50327071,662.19,661.65,0.59431315]
[1747804893733,1.50327071,662.19,661.66,0.59431315]
[1747804893932,1.50327071,662.19,661.66,1.347]
[1747804894926,1.50327071,662.19,661.67,0.59374325]
[1747804895126,1.50327071,662.19,661.68,0.59374325]
[1747804895330,1.50327071,662.19,661.69,0.59374325]
[1747804895527,1.23,662.68,661.66,1.347]
[1747804895528,1.50327071,662.22,661.66,1.347]
[1747804895733,1.50327071,662.22,661.67,0.59347672]
[1747804895928,1.50327071,662.22,661.68,0.59347672]
[1747804896131,1.50327071,662.22,661.66,1.347]
[1747804898634,1.50327071,662.25,661.66,1.347]
[1747804901438,1.50327071,662.39,661.66,1.347]
[1747804903636,1.50327071,662.41,661.66,1.347]
[1747804905744,1.50327071,662.45,661.66,1.347]
[1747804906244,0.2628915,662.44,661.66,1.347]
[1747804908447,1.50327071,662.42,661.66,1.347]
[1747804910648,1.233,662.41,661.66,1.347]
[1747804915853,1.233,662.41,661.67,1.067]
[1747804916053,0.26290342,662.4,661.67,1.067]
[1747804918057,0.26290342,662.4,661.68,1.634]
[1747804920360,0.26290342,662.4,661.68,3.347]
[1747804920556,1.50327071,662.33,661.68,3.347]
[1747804923466,1.50327071,662.32,661.68,3.347]
[1747804925165,1.509,662.31,661.68,3.347]
[1747804926164,3.01227071,662.31,661.68,3.347]
[1747804928669,1.50327071,662.25,661.68,3.347]
[1747804930970,1.509,662.31,661.68,3.347]
[1747804930971,1.50327071,662.23,661.68,3.347]
[1747804933372,1.50327071,662.22,661.68,3.347]
[1747804936171,1.50327071,662.2,661.68,3.347]
[1747804939176,1.50327071,662.15,661.68,3.347]
[1747804940176,1.50327071,662.15,661.68,5.095]
[1747804942080,1.50327071,662.0,661.68,5.095]
[1747804944582,1.50327071,661.98,661.68,5.095]
[1747804947185,1.50327071,661.8,661.68,5.095]
[1747804948185,1.50327071,661.8,661.68,3.461]
[1747804949387,2.25501736,661.8,661.68,1.748]
[1747804953291,1.50396411,661.74,661.68,1.748]
[1747804961996,1.50396411,661.73,661.68,1.748]
[1747804963893,1.50396411,661.72,661.68,1.748]
[1747804966496,1.50396411,661.94,661.68,1.748]
[1747804969995,1.50396411,662.02,661.68,1.748]
[1747804972701,1.50396411,661.99,661.68,1.748]
[1747804975301,1.50396411,662.09,661.68,1.748]
[1747804977301,1.50396411,662.09,661.69,0.59404171]
[1747804977502,1.50396411,662.09,661.7,0.59404171]
[1747804977702,1.50396411,662.19,661.68,1.748]
[1747804977903,1.50396411,662.19,661.69,0.59384797]
[1747804978102,1.50396411,662.19,661.7,0.59384797]
[1747804978297,1.50396411,662.19,661.71,0.59384797]
[1747804978497,1.50396411,662.19,661.72,0.59384797]
[1747804978702,1.50396411,662.19,661.71,1.256]
[1747804979000,1.50396411,662.19,661.72,0.59359781]
[1747804979196,1.50396411,662.19,661.71,1.256]
[1747804980405,1.50396411,662.32,661.71,1.256]
[1747804980703,1.49,662.31,661.71,1.256]
[1747804982603,1.49,662.31,661.72,0.59303155]
[1747804982904,1.49,662.31,661.73,0.5929868]
[1747804983105,1.49,662.31,661.74,0.5929868]
[1747804983300,1.49,662.31,661.75,0.59298747]
[1747804983506,1.49,662.31,661.71,1.256]
[1747804983704,1.49,662.31,661.72,0.5929693]
[1747804983906,1.49,662.31,661.73,0.5929693]
[1747804984100,1.49,662.31,661.71,1.256]
[1747804984302,1.49,662.31,661.72,0.59284249]
[1747804984498,1.49,662.31,661.73,0.59284249]
[1747804984700,1.49,662.31,661.74,0.59284249]
[1747804984900,1.49,662.31,661.75,0.59284249]
[1747804985100,1.49,662.31,661.76,0.59284249]
[1747804985303,1.49,662.31,661.77,0.59284249]
[1747804985503,1.49,662.31,661.78,0.59284249]
[1747804985705,1.49,662.31,661.79,0.59284249]
[1747804985905,1.49,662.31,661.8,0.59284249]
[1747804986100,1.49,662.31,661.81,0.59284249]
[1747804986303,1.49,662.31,661.82,0.59284249]
[1747804986505,1.49,662.31,661.83,0.59284249]
[1747804986708,1.49,662.31,661.84,0.59284249]
[1747804986906,1.49,662.31,661.85,0.59284249]
[1747804987107,1.49,662.31,661.86,0.59197064]
[1747804987301,1.49,662.31,661.73,1.344]
[1747804987502,1.49,662.31,661.74,1.58263948]
[1747804987704,1.49,662.31,661.75,0.59189307]
[1747804987902,1.49,662.31,661.76,1.58263948]
[1747804988104,1.49,662.31,661.77,0.59189307]
[1747804988308,1.49,662.31,661.78,0.59189307]
[1747804988508,1.49,662.31,661.79,1.58263948]
[1747804988708,1.49,662.31,661.8,0.59124621]
[1747804988909,1.49,662.31,661.81,0.59124621]
[1747804989112,1.49,662.31,661.82,0.59124621]
[1747804989409,1.49,662.31,661.83,1.58199262]
[1747804989609,1.49,662.31,661.84,1.58199262]
[1747804989802,1.49,662.31,661.85,0.59124621]
[1747804990002,1.49,662.31,661.86,0.59124621]
[1747804990208,1.49,662.31,661.87,0.59124621]
[1747804990410,1.49,662.31,661.88,0.59076662]
[1747804990606,1.49,662.31,661.73,1.344]
[1747804990806,1.49,662.31,661.74,0.59056687]
[1747804991009,1.49,662.31,661.75,0.59056687]
[1747804991205,1.49,662.31,661.76,0.59056687]
[1747804991413,1.49,662.31,661.77,1.57888342]
[1747804991609,1.49,662.31,661.78,0.59056687]
[1747804991804,1.49,662.31,661.79,1.57888342]
[1747804992007,1.49,662.31,661.8,0.59056687]
[1747804992210,1.49,662.31,661.81,0.59056687]
[1747804992408,1.49,662.31,661.82,0.59008604]
[1747804992612,1.49,662.31,661.83,0.59008604]
[1747804992911,1.49,662.31,661.84,0.59008604]
[1747804993112,1.49,662.31,661.85,1.57840259]
[1747804993307,1.49,662.31,661.86,0.59008604]
[1747804993514,1.49,662.31,661.87,0.59008604]
[1747804993716,1.49,662.31,661.88,1.57840259]
[1747804993911,1.49,662.31,661.89,0.59008604]
[1747804994109,1.49,662.31,661.9,1.57840259]
[1747804994315,1.49,662.31,661.91,1.57840259]
[1747804994621,1.49,662.31,661.91,0.98831655]
[1747804994815,1.49,662.31,661.92,0.58932135]
[1747804995016,1.49,662.31,661.93,0.58932135]
[1747804995217,1.49,662.31,661.84,1.718]
[1747804995414,1.49,662.31,661.85,1.57465883]
[1747804995616,1.49,662.31,661.86,0.58932114]
[1747804995815,1.49,662.31,661.87,0.58932114]
[1747804996114,1.49,662.31,661.88,1.57465883]
[1747804996416,1.49,662.31,661.89,0.58932114]
[1747804996617,1.49,662.31,661.9,0.98533769]
[1747804997117,1.49,662.31,661.91,0.98533769]
[1747804997517,1.49,662.31,661.92,0.98533769]
[1747804997917,1.49,662.31,661.84,1.718]
[1747804998118,1.49,662.31,661.85,0.58893883]
[1747804998319,1.49,662.31,661.86,0.58893883]
[1747804998516,1.49,662.31,661.87,1.57409677]
[1747804998715,1.49,662.31,661.87,0.98515794]
[1747804998917,1.49,662.31,661.88,0.98515794]
[1747804999520,1.49,662.31,661.89,0.98515794]
[1747804999719,1.49,662.31,661.9,0.98515794]
[1747805000119,1.49,662.31,661.84,1.718]
[1747805003120,1.49,662.31,661.85,1.171]
[1747805007723,1.49,662.31,661.86,0.98442631]
[1747805008223,1.49,662.31,661.87,0.98442631]
[1747805008825,1.50396411,662.76,661.88,0.98442631]
[1747805009524,0.26280117,662.86,661.89,0.98442631]
[1747805010125,0.26280117,662.86,661.9,0.98442631]
[1747805010326,1.50396411,662.87,661.91,0.5887533]
[1747805010526,1.50396411,662.87,661.9,0.98442631]
[1747805010724,1.50396411,662.87,661.92,0.98442631]
[1747805011122,1.247,662.86,661.93,0.98442631]
[1747805011526,1.247,662.86,661.94,0.98442631]
[1747805011726,1.247,662.86,661.85,1.171]
[1747805011929,1.247,662.86,661.86,0.58868615]
[1747805012129,1.247,662.86,661.87,0.58868615]
[1747805012323,1.247,662.86,661.88,0.58868615]
[1747805012524,1.247,662.86,661.89,0.58868615]
[1747805012727,1.247,662.86,661.9,1.57257268]
[1747805012928,1.247,662.86,661.91,0.58875261]
[1747805013127,1.247,662.86,661.9,0.98382007]
[1747805013331,1.247,662.86,661.92,0.98382007]
[1747805013529,1.247,662.86,661.93,0.98382007]
[1747805013831,1.247,662.86,661.85,1.171]
[1747805014025,1.247,662.86,661.86,0.58883518]
[1747805014228,1.247,662.86,661.87,0.58883518]
[1747805014431,1.247,662.86,661.88,0.5889164]
[1747805014630,1.247,662.86,661.89,0.5889164]
[1747805014827,1.247,662.86,661.9,0.5889164]
[1747805015029,1.247,662.86,661.91,0.98533821]
[1747805015535,1.247,662.86,661.85,1.171]
[1747805015728,1.247,662.86,661.86,0.58899124]
[1747805015932,1.247,662.86,661.87,0.58899124]
[1747805016132,1.247,662.86,661.88,1.5746005]
[1747805016332,1.247,662.86,661.89,0.58900735]
[1747805016530,1.247,662.86,661.88,0.98559315]
[1747805016831,1.247,662.86,661.89,1.57475637]
[1747805017030,1.247,662.86,661.89,0.98559315]
[1747805017230,1.247,662.86,661.9,0.98559315]
[1747805017640,1.247,662.86,661.91,0.98559315]
[1747805018339,1.247,662.86,661.92,0.98559315]
[1747805018739,1.247,662.86,661.85,1.171]
[1747805018939,1.247,662.86,661.86,1.57622821]
[1747805019139,1.247,662.86,661.87,0.58950689]
[1747805019338,1.50396411,662.83,661.88,0.58950689]
[1747805019537,1.50396411,662.83,661.89,0.58950689]
[1747805019734,1.50396411,662.83,661.9,0.58950689]
[1747805019938,1.50396411,662.83,661.91,1.57622821]
[1747805020141,1.50396411,662.83,661.91,0.98672132]
[1747805020341,1.50396411,662.83,661.88,1.3]
[1747805020537,1.50396411,662.83,661.89,0.5899545]
[1747805020741,1.50396411,662.83,661.9,1.57775605]
[1747805020941,1.50396411,662.83,661.9,0.98780155]
[1747805021341,1.50396411,662.83,661.88,1.3]
[1747805021541,1.50396411,662.79,661.88,1.3]
[1747805021742,1.50396411,662.79,661.89,0.59171775]
[1747805022042,1.50396411,662.79,661.9,0.59170741]
[1747805022245,1.50396411,662.79,661.88,1.3]
[1747805022541,1.50396411,662.79,661.89,1.5814213]
[1747805022743,1.50396411,662.79,661.9,0.59195317]
[1747805022942,1.50396411,662.79,661.88,1.3]
[1747805023142,1.50396411,662.79,661.89,0.59210938]
[1747805023337,1.50396411,662.72,661.9,0.59210938]
[1747805023541,1.50396411,662.72,661.91,0.59210938]
[1747805023738,1.50396411,662.72,661.88,1.3]
[1747805023942,1.50396411,662.72,661.89,0.59236764]
[1747805024241,1.50396411,662.72,661.9,0.59236764]
[1747805024540,1.50396411,662.72,661.91,0.59236764]
[1747805024740,1.50396411,662.72,661.92,0.59257416]
[1747805024938,1.50396411,662.72,661.93,0.59257416]
[1747805025242,1.50396411,662.72,661.94,0.59255268]
[1747805025438,1.50396411,662.72,661.95,0.59281826]
[1747805025639,1.50396411,662.72,661.88,1.3]
[1747805025837,1.50396411,662.73,661.89,0.59284381]
[1747805026039,1.50396411,662.73,661.9,1.58312089]
[1747805026242,1.50396411,662.73,661.91,0.59284381]
[1747805026443,1.50396411,662.73,661.92,0.59315688]
[1747805026643,1.50396411,662.73,661.93,0.59315688]
[1747805026942,1.50396411,662.73,661.94,0.59315688]
[1747805027144,1.50396411,662.73,661.95,0.59315688]
[1747805027343,1.50396411,662.73,661.96,0.59350352]
[1747805027642,1.50396411,662.73,661.93,1.662]
[1747805027844,1.50396411,662.73,661.94,0.59353713]
[1747805028044,1.50396411,662.73,661.95,0.59353713]
[1747805028246,1.50396411,662.73,661.96,0.59353713]
[1747805028444,1.50396411,662.73,661.97,0.59353713]
[1747805028645,1.50396411,662.68,661.98,0.59353713]
[1747805028843,1.50396411,662.68,661.97,1.531]
[1747805029044,1.50396411,662.68,661.98,0.5939475]
[1747805029239,1.50396411,662.68,661.97,1.531]
[1747805029443,1.50396411,662.68,661.98,0.59432289]
[1747805029642,1.50396411,662.68,661.99,0.59432289]
[1747805029842,1.50396411,662.68,661.97,1.531]
[1747805030044,1.085,662.67,661.98,0.59434985]
[1747805030244,1.085,662.67,661.99,0.59434985]
[1747805030444,1.085,662.67,661.97,1.531]
[1747805032152,1.50396411,662.34,661.97,1.531]
[1747805034054,1.50396411,662.34,661.98,0.59594251]
[1747805034354,1.50396411,662.34,661.97,1.531]
[1747805034355,1.50396411,662.34,661.99,0.59622213]
[1747805034555,1.50396411,662.34,662.0,0.59622213]
[1747805034754,1.50396411,662.34,661.97,1.531]
[1747805034954,1.50396411,662.4,661.98,0.59620198]
[1747805035155,1.50396411,662.4,661.99,0.59620198]
[1747805035355,1.50396411,662.4,662.0,0.59620198]
[1747805035557,1.50396411,662.4,662.01,0.59620198]
[1747805035758,1.50396411,662.4,662.02,0.59620198]
[1747805035955,1.50396411,662.4,662.03,0.59620198]
[1747805036157,1.50396411,662.4,662.04,0.59620198]
[1747805036356,1.50396411,662.4,662.05,0.59620198]
[1747805036557,1.50396411,662.4,662.06,0.59620198]
[1747805036855,1.50396411,662.4,662.07,0.59620198]
[1747805037055,1.50396411,662.4,662.08,0.59620198]
[1747805037259,1.50396411,662.38,662.09,0.59620198]
[1747805037554,1.50396411,662.38,662.1,0.59620198]
[1747805037861,1.50396411,662.38,662.05,1.087]
[1747805038060,1.50396411,662.38,662.06,0.59686924]
[1747805038260,1.50396411,662.38,662.07,0.59686924]
[1747805038460,1.50396411,662.38,662.05,1.087]
[1747805039860,1.50396411,662.35,662.05,1.087]
[1747805042358,1.50396411,662.34,662.05,1.087]
[1747805045664,1.1295966,662.16,662.05,1.087]
[1747805049266,1.50396411,662.36,662.05,1.087]
[1747805053274,1.50396411,662.41,662.05,1.087]
[1747805055977,1.50396411,662.35,662.05,1.087]
[1747805058878,1.50396411,662.32,662.05,1.087]
[1747805059777,1.50396411,662.32,661.93,1.662]
[1747805059979,1.50396411,662.32,661.94,0.59880033]
[1747805060176,1.50396411,662.32,661.95,0.59880089]
[1747805060376,1.50396411,662.32,661.96,0.59880089]
[1747805060579,1.50396411,662.32,661.97,0.59880089]
[1747805060779,1.50396411,662.32,661.98,0.59880089]
[1747805060976,1.50396411,662.32,661.99,0.59880089]
[1747805061178,1.50396411,662.32,662.0,0.59880089]
[1747805061381,1.50396411,662.32,661.93,1.662]
[1747805061684,1.50396411,662.32,661.94,0.59878625]
[1747805061879,1.50396411,662.32,661.93,1.662]
[1747805062083,1.50396411,662.32,661.94,0.59878541]
[1747805062276,1.50396411,662.32,661.95,0.59878541]
[1747805062480,1.50396411,662.3,661.96,0.59878541]
[1747805062680,1.50396411,662.3,661.97,0.59878541]
[1747805062878,1.50396411,662.3,661.98,0.59878541]
[1747805063084,1.50396411,662.3,661.95,1.64]
[1747805063085,1.50396411,662.3,661.99,0.59878541]
[1747805063279,1.50396411,662.3,662.0,0.59878541]
[1747805063486,1.50396411,662.3,661.95,1.64]
[1747805063687,1.50396411,662.3,661.96,0.59879038]
[1747805063985,1.50396411,662.3,661.97,0.59879038]
[1747805064186,1.50396411,662.3,661.98,0.59879038]
[1747805064384,1.50396411,662.3,661.99,0.59879038]
[1747805064586,1.50396411,662.3,662.0,0.59879038]
[1747805064786,1.50396411,662.3,661.95,1.64]
[1747805064995,1.50396411,662.3,661.96,0.59879367]
[1747805065286,1.50396411,662.3,661.97,0.59879367]
[1747805065480,1.50396411,662.3,661.95,1.64]
[1747805065481,1.50396411,662.3,661.98,0.59879367]
[1747805065682,1.50396411,662.3,661.95,1.64]
[1747805065886,1.50396411,662.3,661.96,0.59879606]
[1747805066089,1.50396411,662.3,661.97,0.59879606]
[1747805066287,1.50396411,662.3,661.98,0.59879606]
[1747805066488,1.50396411,662.3,661.95,1.64]
[1747805066790,1.50396411,662.3,661.96,0.59878297]
[1747805066988,1.50396411,662.3,661.97,0.59878297]
[1747805067190,1.50396411,662.3,661.98,0.59878297]
[1747805067390,1.50396411,662.3,661.99,0.59878297]